fUST/lending_fUST_20250116
["ID","MTS","AMOUNT","RATE_DAILY","PERIOD"]
[349200281,1737030634609,-500.0,0.00019589,3]
[349200282,1737030634618,-500.0,0.00019589,3]
[349200283,1737030634629,-500.0,0.00019589,3]
[349200284,1737030634638,-1362.34,0.00019589,3]
[349200285,1737030634648,-272.46,0.00019589,3]
[349200286,1737030634659,-500.0,0.00019589,3]
[349200287,1737030634669,-1332.85,0.00019589,3]
[349200288,1737030634680,-500.0,0.00019589,3]
[349200289,1737030634690,-500.0,0.00019589,3]
[349200290,1737030634700,-567.65540727,0.00019589,3]
[349200291,1737030634710,-500.0,0.00019589,3]
[349200292,1737030634720,-6300.55,0.00019589,3]
[349200293,1737030634730,-500.0,0.00019589,3]
[349200294,1737030634740,-500.0,0.00019589,3]
[349200295,1737030634750,-500.0,0.00019589,3]
[349200296,1737030634760,-500.0,0.00019589,3]
[349200297,1737030634770,-2025.41,0.00019589,3]
[349200298,1737030634780,-500.0,0.00019589,3]
[349200299,1737030634790,-500.0,0.00019589,3]
[349200300,1737030634800,-619.23,0.00019589,3]
[349200301,1737030634810,-643.54,0.00019589,3]
[349200302,1737030634820,-500.0,0.00019589,3]
[349200303,1737030634830,-514.07,0.00019589,3]
[349200304,1737030634841,-179.84403673,0.00019589,3]
[349200305,1737030634850,-500.0,0.00019589,3]
[349200306,1737030634862,-500.0,0.00019589,3]
[349200307,1737030634873,-500.0,0.00019589,3]
[349200308,1737030634882,-933.97,0.00019589,3]
[349200309,1737030634892,-500.0,0.00019589,3]
[349200310,1737030634903,-1696.35,0.00019589,3]
[349200311,1737030634912,-420.0,0.00019639,2]
[349200312,1737030634923,-602.49104323,0.00019726,3]
[349200313,1737030634933,-500.0,0.00019726,2]
[349200314,1737030634943,-500.0,0.00019726,3]
[349200315,1737030634954,-500.0,0.00019726,3]
[349200316,1737030634963,-1268.55,0.00019726,3]
[349200317,1737030634973,-500.0,0.00019726,3]
[349200318,1737030634983,-500.0,0.00019726,3]
[349200319,1737030634992,-500.0,0.00019726,3]
[349200320,1737030635003,-1362.34,0.00019726,3]
[349200321,1737030635013,-500.0,0.00019726,3]
[349200322,1737030635023,-1332.85,0.00019726,3]
[349200323,1737030635034,-500.0,0.00019726,3]
[349200324,1737030635044,-500.0,0.00019726,3]
[349200325,1737030635054,-500.0,0.00019726,3]
[349200326,1737030635065,-6300.55,0.00019726,3]
[349200327,1737030635075,-500.0,0.00019726,3]
[349200328,1737030635085,-500.0,0.00019726,3]
[349200329,1737030635095,-500.0,0.00019726,3]
[349200330,1737030635105,-500.0,0.00019726,3]
[349200331,1737030635115,-2025.41,0.00019726,3]
[349200332,1737030635126,-500.0,0.00019726,3]
[349200333,1737030635136,-619.23,0.00019726,3]
[349200334,1737030635146,-643.54,0.00019726,3]
[349200335,1737030635157,-514.07,0.00019726,3]
[349200336,1737030635167,-500.0,0.00019726,3]
[349200337,1737030635178,-500.0,0.00019726,3]
[349200338,1737030635188,-933.97,0.00019726,3]
[349200339,1737030635198,-500.0,0.00019726,3]
[349200340,1737030635208,-1696.35,0.00019726,3]
[349200341,1737030635217,-178.95740512,0.00019731,2]
[349200342,1737030635227,-500.000001,0.000198,2]
[349200343,1737030635238,-257.51823624,0.00019821,2]
[349200344,1737030635247,-269.22128299,0.00019821,2]
[349200345,1737030635257,-160.12576649,0.00019821,2]
[349200346,1737030635272,-151.56860726,0.00019821,2]
[349200347,1737030635282,-838.07818444,0.00019838,2]
[349200348,1737030635293,-500.0,0.00019863,2]
[349200349,1737030635303,-500.0,0.00019863,3]
[349200350,1737030635317,-500.0,0.00019863,3]
[349200351,1737030635327,-1268.55,0.00019863,3]
[349200352,1737030635337,-500.0,0.00019863,3]
[349200353,1737030635346,-500.0,0.00019863,3]
[349200354,1737030635360,-500.0,0.00019863,3]
[349200355,1737030635370,-1362.34,0.00019863,3]
[349200356,1737030635381,-500.0,0.00019863,3]
[349200357,1737030635391,-1332.85,0.00019863,3]
[349200358,1737030635401,-500.0,0.00019863,3]
[349200359,1737030635411,-500.0,0.00019863,3]
[349200360,1737030635421,-6300.55,0.00019863,3]
[349200361,1737030635431,-500.0,0.00019863,3]
[349200362,1737030635441,-500.0,0.00019863,3]
[349200363,1737030635452,-500.0,0.00019863,3]
[349200364,1737030635462,-500.0,0.00019863,3]
[349200365,1737030635472,-2025.41,0.00019863,3]
[349200366,1737030635483,-500.0,0.00019863,3]
[349200367,1737030635493,-643.54,0.00019863,3]
[349200368,1737030635504,-619.23,0.00019863,3]
[349200369,1737030635514,-514.07,0.00019863,3]
[349200370,1737030635525,-500.0,0.00019863,3]
[349200371,1737030635535,-500.0,0.00019863,3]
[349200372,1737030635545,-933.97,0.00019863,3]
[349200373,1737030635556,-500.0,0.00019863,3]
[349200374,1737030635566,-1696.35,0.00019863,3]
[349200375,1737030635576,-8079.187403,0.00019875,2]
[349200376,1737030635586,-500.0,0.00019894,2]
[349200377,1737030635596,-357.99580065,0.00019894,2]
[349200378,1737030635608,-165.25588682,0.00019899,2]
[349200379,1737030635617,-1320.74,0.000199,2]
[349200380,1737030635627,-4701.0176535,0.000199,2]
[349200381,1737030635637,-2073.0,0.00019948,2]
[349200382,1737030635647,-535.0,0.00019948,2]
[349200383,1737030635656,-2286.0,0.00019948,2]
[349200384,1737030635666,-395.0,0.00019948,2]
[349200385,1737030635677,-500.0,0.00019963,2]
[349200386,1737030635689,-274.8592222,0.00019999,2]
[349200387,1737030635699,-10936.65624472,0.0002,5]
[349200388,1737030635709,-2005.83442227,0.0002,5]
[349200389,1737030635719,-318384.25380546,0.0002,5]
[349200403,1737030638285,-500.0,0.00019178,2]
[349200404,1737030638296,-500.0,0.00019315,3]
[349200406,1737030638308,-164.369416,0.00019452,3]
[349200417,1737030640369,-335.630584,0.00019452,3]
[349200418,1737030640379,-500.0,0.00019589,3]
[349200419,1737030640389,-500.0,0.00019726,3]
[349200420,1737030640400,-379.69317021,0.00019863,3]
[349200458,1737030643138,-500.0,0.00019178,2]
[349200459,1737030643147,-156.34355974,0.00019315,3]
[349200460,1737030643159,-343.65644026,0.00019315,3]
[349200461,1737030643171,-500.0,0.00019452,3]
[349200462,1737030643180,-24.54416408,0.00019863,3]
[349200463,1737030643190,-1092.83598493,0.0002,5]
[349200472,1737030646310,-500.0,0.00019589,3]
[349200473,1737030646320,-500.0,0.00019726,3]
[349200474,1737030646432,-500.0,0.00019863,3]
[349200475,1737030646442,-33608.1160824,0.0002,5]
[349200476,1737030646452,-351220.99184401,0.0002,5]
[349200486,1737031076993,181.526309,0.00013973,2]
[349200586,1737031832531,-2034.0,0.00017022,2]
[349200587,1737031832540,-2667.783162,0.0001755,2]
[349200588,1737031832550,-1734.0,0.00017798,2]
[349200589,1737031832559,-300.0,0.00017798,2]
[349200590,1737031832569,-5895.0579411,0.00017799,2]
[349200591,1737031832578,-24470.18,0.000179,2]
[349200592,1737031832587,-499.448,0.00018522,2]
[349200593,1737031832596,-8055.83556813,0.000188,2]
[349200594,1737031832609,-1942.41915195,0.000188,2]
[349200595,1737031832619,-354.69330701,0.000188,2]
[349200596,1737031832629,-2430.97290375,0.000188,2]
[349200597,1737031832641,-318.3456,0.000188,2]
[349200598,1737031836277,-2231.76630013,0.000188,2]
[349200601,1737031836290,-199.92127468,0.000188,2]
[349200603,1737031836300,-155.18,0.00018873,2]
[349200605,1737031836310,-536.73479423,0.00018873,2]
[349200607,1737031836319,-500.0,0.00018873,2]
[349200608,1737031836328,-500.0,0.00018899,2]
[349200609,1737031836338,-185.34886705,0.00018899,2]
[349200610,1737031836348,-500.0,0.00018899,2]
[349200611,1737031836358,-574.45998152,0.00018899,2]
[349200612,1737031836368,-202.15306917,0.00018899,2]
[349200613,1737031836381,-297.84693083,0.00018899,2]
[349200614,1737031836402,-500.0,0.00018899,2]
[349200615,1737031836413,-500.0,0.00018899,2]
[349200616,1737031836423,-600.1448605,0.00018899,2]
[349200617,1737031836433,-138.96627167,0.00018899,2]
[349200660,1737031838427,-361.03372833,0.00018899,2]
[349200662,1737031838437,-458.0,0.00018899,2]
[349200664,1737031838447,-500.0,0.00018899,2]
[349200666,1737031838456,-500.0,0.00018899,2]
[349200668,1737031838466,-505.80023658,0.00018899,2]
[349200670,1737031838476,-500.0,0.00018899,2]
[349200672,1737031838485,-500.0,0.00018899,2]
[349200674,1737031838495,-500.0,0.00018899,2]
[349200676,1737031838504,-500.0,0.00018899,2]
[349200678,1737031838514,-500.0,0.00018899,2]
[349200680,1737031838523,-248.94775934,0.00018899,2]
[349200683,1737031838532,-500.0,0.00018899,2]
[349200685,1737031838542,-500.0,0.00018899,2]
[349200687,1737031838551,-5468.32812236,0.000189,5]
[349200689,1737031838561,-1002.91721114,0.000189,5]
[349200691,1737031838570,-5435.35971584,0.000189,5]
[349200726,1737031840571,-12685.94475113,0.000189,5]
[349200789,1737031961136,172.449993,0.00013973,2]
[349200800,1737032832124,1521.0,0.00025,120]
[349200818,1737032985632,163.827493,0.00013973,2]
[349200851,1737033036876,-300.0,0.00015924,2]
[349200853,1737033036888,-300.0,0.00016085,2]
[349200855,1737033036897,-1411.50655031,0.00016247,2]
[349200857,1737033036906,-300.0,0.00016998,2]
[349200859,1737033036916,-8970.74881447,0.00016999,2]
[349200861,1737033036928,-2316.54280088,0.00016999,2]
[349200863,1737033036945,-11141.39117975,0.00016999,2]
[349200864,1737033036955,-655.82130702,0.00017226,2]
[349200865,1737033036964,-20546.189476,0.00017304,2]
[349200866,1737033036974,-553.9772649,0.00017326,2]
[349200867,1737033036983,-655.82130697,0.00018149,2]
[349200868,1737033036993,-420.0,0.00018566,2]
[349200869,1737033037002,-4662.90547065,0.000188,2]
[349200870,1737033037012,-505.50786307,0.00018873,2]
[349200871,1737033037022,-179.77998853,0.00018873,2]
[349200872,1737033037033,-500.0,0.00018873,2]
[349200873,1737033037042,-520.13321862,0.00018873,2]
[349200874,1737033037052,-500.0,0.00018873,2]
[349200875,1737033037062,-2734.16406118,0.000189,5]
[349200876,1737033037072,-501.45860557,0.000189,5]
[349200877,1737033037081,-715.87301476,0.000189,5]
[349200878,1737033037423,-1309674.42251827,0.000189,5]
[349200879,1737033037433,-9893.37,0.000189,2]
[349200880,1737033037442,-2263.99,0.000189,2]
[349200881,1737033037452,-7910.87,0.000189,2]
[349200882,1737033037461,-151.0,0.000189,2]
[349200883,1737033037471,-151.0,0.000189,2]
[349200884,1737033037482,-151.0,0.000189,2]
[349200885,1737033037492,-2223.42,0.000189,5]
[349200886,1737033037502,-5408.66585611,0.000189,2]
[349200888,1737033037512,-88609.4411693,0.0001899,2]
[349200890,1737033037522,-1175.17725472,0.00019,12]
[349200892,1737033037532,-655.82130697,0.00019072,2]
[349200894,1737033037542,-5408.66585599,0.00019072,2]
[349200896,1737033037552,-3000.0,0.000191,2]
[349200898,1737033037562,-3000.0,0.0001911,2]
[349200900,1737033037573,-3000.0,0.0001912,2]
[349200902,1737033037583,-4818.754676,0.0001913,2]
[349200904,1737033037595,-74817.80815599,0.00019154,5]
[349200905,1737033037605,-500.0,0.00019178,2]
[349200906,1737033037614,-542.85773027,0.00019178,2]
[349200907,1737033037625,-500.0,0.00019178,2]
[349200908,1737033037635,-463.16792737,0.00019178,2]
[349200909,1737033037645,-500.0,0.00019178,2]
[349200910,1737033037655,-500.0,0.00019178,2]
[349200911,1737033037666,-500.0,0.00019178,2]
[349200912,1737033037676,-500.0,0.00019178,2]
[349200913,1737033037686,-500.0,0.00019178,2]
[349200914,1737033037696,-500.0,0.00019178,2]
[349200915,1737033037706,-500.0,0.00019178,2]
[349200916,1737033037714,-500.0,0.00019178,2]
[349200917,1737033037724,-500.0,0.00019178,2]
[349200918,1737033037733,-500.0,0.00019178,2]
[349200919,1737033037743,-500.0,0.00019178,2]
[349200920,1737033037752,-500.0,0.00019178,2]
[349200921,1737033037761,-500.0,0.00019178,2]
[349200922,1737033037771,-500.0,0.00019178,2]
[349200923,1737033037780,-500.0,0.00019178,2]
[349200924,1737033037789,-500.0,0.00019178,2]
[349200925,1737033037798,-500.0,0.00019178,2]
[349200926,1737033037808,-296.90120375,0.00019178,2]
[349200927,1737033037818,-500.0,0.00019178,2]
[349200928,1737033037828,-500.0,0.00019178,2]
[349200929,1737033037840,-500.0,0.00019178,2]
[349200930,1737033037850,-500.0,0.00019178,2]
[349200931,1737033037860,-503.31893353,0.00019178,2]
[349200932,1737033037870,-500.0,0.00019178,2]
[349200933,1737033037879,-500.0,0.00019178,2]
[349200934,1737033037889,-500.0,0.00019178,2]
[349200935,1737033037899,-500.0,0.00019178,2]
[349200936,1737033037909,-312.90607351,0.00019178,2]
[349200937,1737033037919,-500.0,0.00019178,2]
[349200938,1737033037928,-500.0,0.00019178,2]
[349200939,1737033037937,-500.0,0.00019178,2]
[349200940,1737033037947,-500.0,0.00019178,2]
[349200941,1737033037958,-500.0,0.00019178,2]
[349200942,1737033037968,-188.62668198,0.00019178,2]
[349200943,1737033037978,-593.78051752,0.00019178,2]
[349200944,1737033037988,-500.0,0.00019178,2]
[349200945,1737033037997,-500.0,0.00019178,2]
[349200946,1737033038007,-500.0,0.00019178,2]
[349200947,1737033038017,-500.0,0.00019178,2]
[349200948,1737033038027,-500.0,0.00019178,2]
[349200950,1737033038038,-501.35629205,0.00019178,2]
[349200951,1737033038048,-500.0,0.00019178,2]
[349200953,1737033038058,-501.59710977,0.00019178,2]
[349200954,1737033038067,-151.0,0.00019178,2]
[349200955,1737033038077,-195.334235,0.00019178,2]
[349200956,1737033038090,-195.334235,0.00019178,2]
[349200957,1737033038099,-500.0,0.00019178,2]
[349200958,1737033038108,-299.06352534,0.00019178,2]
[349200959,1737033038117,-500.0,0.00019178,2]
[349200960,1737033038129,-151.0,0.00019178,2]
[349200962,1737033038138,-500.0,0.00019178,2]
[349200963,1737033038148,-500.0,0.00019178,2]
[349200965,1737033038161,-500.0,0.00019178,2]
[349200967,1737033038171,-500.0,0.00019178,2]
[349200968,1737033038181,-500.0,0.00019178,2]
[349200969,1737033038190,-500.0,0.00019178,2]
[349200971,1737033038200,-500.0,0.00019178,2]
[349200972,1737033038209,-447.27566104,0.00019178,2]
[349200973,1737033038218,-568.96582375,0.00019178,2]
[349200974,1737033038227,-151.0,0.00019178,2]
[349200976,1737033038236,-500.0,0.00019178,2]
[349200977,1737033038245,-500.0,0.00019178,2]
[349200978,1737033038254,-832.53,0.00019178,2]
[349200979,1737033038263,-500.0,0.00019178,2]
[349200980,1737033038272,-151.0,0.00019178,2]
[349200981,1737033038281,-500.0,0.00019178,2]
[349200982,1737033038291,-500.0,0.00019178,2]
[349200983,1737033038303,-500.0,0.00019178,2]
[349200984,1737033038312,-151.0,0.00019178,2]
[349200986,1737033038323,-500.0,0.00019178,2]
[349200988,1737033038332,-500.0,0.00019178,2]
[349200990,1737033038345,-500.0,0.00019178,2]
[349200992,1737033038355,-500.0,0.00019178,2]
[349200994,1737033038364,-500.0,0.00019178,2]
[349200996,1737033038373,-500.0,0.00019178,2]
[349200998,1737033038384,-500.0,0.00019178,2]
[349201000,1737033038393,-500.0,0.00019178,2]
[349201002,1737033038402,-500.0,0.00019178,2]
[349201004,1737033038412,-500.0,0.00019178,2]
[349201006,1737033038421,-500.0,0.00019178,2]
[349201008,1737033038431,-500.0,0.00019178,2]
[349201010,1737033038442,-500.0,0.00019178,2]
[349201012,1737033038451,-170.30925434,0.00019178,2]
[349201015,1737033038462,-151.0,0.00019178,2]
[349201016,1737033038471,-500.0,0.00019178,2]
[349201018,1737033038481,-151.0,0.00019178,2]
[349201020,1737033038491,-500.0,0.00019178,2]
[349201023,1737033038501,-151.0,0.00019178,2]
[349201025,1737033038512,-500.0,0.00019178,2]
[349201027,1737033038522,-500.0,0.00019178,2]
[349201028,1737033038532,-500.0,0.00019178,2]
[349201031,1737033038542,-500.0,0.00019178,2]
[349201033,1737033038552,-521.68,0.00019178,2]
[349201035,1737033038562,-500.0,0.00019178,2]
[349201036,1737033038572,-500.0,0.00019178,2]
[349201038,1737033038582,-551.69,0.00019178,2]
[349201039,1737033038596,-151.0,0.00019178,2]
[349201040,1737033038606,-151.0,0.00019178,2]
[349201041,1737033038616,-151.0,0.00019178,2]
[349201042,1737033038625,-500.0,0.00019178,2]
[349201043,1737033038635,-151.0,0.00019178,2]
[349201044,1737033038646,-184.313212,0.00019178,2]
[349201045,1737033038657,-500.0,0.00019178,2]
[349201046,1737033038668,-500.0,0.00019178,2]
[349201047,1737033038678,-500.0,0.00019178,2]
[349201048,1737033038688,-537.50173363,0.00019178,2]
[349201049,1737033038697,-500.0,0.00019178,2]
[349201050,1737033038707,-500.0,0.00019178,2]
[349201051,1737033038718,-14119.6,0.00019178,2]
[349201052,1737033038727,-500.0,0.00019178,2]
[349201053,1737033038737,-1869.13,0.00019178,2]
[349201054,1737033038747,-500.0,0.00019178,2]
[349201055,1737033038757,-2291.8,0.00019178,2]
[349201056,1737033038768,-500.0,0.00019178,2]
[349201057,1737033038778,-500.0,0.00019178,2]
[349201058,1737033038788,-500.0,0.00019178,2]
[349201059,1737033038799,-500.0,0.00019178,2]
[349201060,1737033038809,-500.0,0.00019178,2]
[349201061,1737033038819,-500.0,0.00019178,2]
[349201062,1737033038829,-1195.93,0.00019178,2]
[349201063,1737033038841,-151.0,0.00019178,2]
[349201064,1737033038852,-500.0,0.00019178,2]
[349201065,1737033038862,-736.29,0.00019178,2]
[349201067,1737033038872,-500.0,0.00019178,2]
[349201069,1737033038883,-196.760453,0.00019178,2]
[349201071,1737033038893,-1626.84,0.00019178,2]
[349201073,1737033038903,-500.0,0.00019178,2]
[349201076,1737033038912,-500.0,0.00019178,2]
[349201079,1737033038922,-196.760453,0.00019178,2]
[349201082,1737033038931,-151.0,0.00019178,2]
[349201085,1737033038941,-491.417974,0.00019178,2]
[349201088,1737033038950,-491.417974,0.00019178,2]
[349201091,1737033038959,-500.0,0.00019178,2]
[349201094,1737033038970,-5668.63,0.00019178,2]
[349201097,1737033038979,-500.0,0.00019178,2]
[349201099,1737033038989,-500.0,0.00019178,2]
[349201101,1737033038998,-500.0,0.00019178,2]
[349201103,1737033039008,-500.0,0.00019178,2]
[349201105,1737033039017,-500.0,0.00019178,2]
[349201106,1737033039026,-500.0,0.00019178,2]
[349201108,1737033039036,-500.0,0.00019178,2]
[349201110,1737033039045,-500.0,0.00019178,2]
[349201112,1737033039055,-500.0,0.00019178,2]
[349201115,1737033039065,-500.0,0.00019178,2]
[349201117,1737033039075,-151.0,0.00019178,2]
[349201119,1737033039086,-500.0,0.00019178,2]
[349201121,1737033039095,-500.0,0.00019178,2]
[349201122,1737033039104,-500.0,0.00019178,2]
[349201124,1737033039113,-500.0,0.00019178,2]
[349201126,1737033039123,-500.0,0.00019178,2]
[349201129,1737033039133,-181.037859,0.00019178,2]
[349201131,1737033039143,-500.0,0.00019178,2]
[349201132,1737033039152,-500.0,0.00019178,2]
[349201135,1737033039162,-500.0,0.00019178,2]
[349201136,1737033039172,-500.0,0.00019178,2]
[349201139,1737033039182,-201.10590486,0.00019178,2]
[349201141,1737033039195,-500.0,0.00019178,2]
[349201143,1737033039204,-500.0,0.00019178,2]
[349201145,1737033039214,-500.0,0.00019178,2]
[349201147,1737033039223,-500.0,0.00019178,2]
[349201149,1737033039233,-609.19,0.00019178,2]
[349201151,1737033039243,-500.0,0.00019178,2]
[349201153,1737033039253,-500.0,0.00019178,2]
[349201155,1737033039263,-500.0,0.00019178,2]
[349201157,1737033039272,-500.0,0.00019178,2]
[349201159,1737033039281,-151.0,0.00019178,2]
[349201161,1737033039290,-500.0,0.00019178,2]
[349201163,1737033039300,-500.0,0.00019178,2]
[349201165,1737033039314,-500.0,0.00019178,2]
[349201167,1737033039323,-506.33934603,0.00019178,2]
[349201169,1737033039333,-500.0,0.00019178,2]
[349201171,1737033039343,-500.0,0.00019178,2]
[349201172,1737033039353,-500.0,0.00019178,2]
[349201173,1737033039362,-7351.8,0.00019178,2]
[349201174,1737033039373,-500.0,0.00019178,2]
[349201175,1737033039382,-500.0,0.00019178,2]
[349201176,1737033039391,-638.08,0.00019178,2]
[349201177,1737033039401,-500.0,0.00019178,2]
[349201178,1737033039410,-500.0,0.00019178,2]
[349201179,1737033039420,-500.0,0.00019178,2]
[349201180,1737033039430,-500.0,0.00019178,2]
[349201181,1737033039440,-1002.68,0.00019178,2]
[349201182,1737033039450,-500.0,0.00019178,2]
[349201183,1737033039459,-189.849554,0.00019178,2]
[349201184,1737033039469,-500.0,0.00019178,2]
[349201185,1737033039479,-500.0,0.00019178,2]
[349201186,1737033039489,-500.0,0.00019178,2]
[349201187,1737033039499,-618.603962,0.00019178,2]
[349201188,1737033039509,-616.31,0.00019178,2]
[349201189,1737033039518,-500.0,0.00019178,2]
[349201190,1737033039528,-618.603962,0.00019178,2]
[349201191,1737033039537,-500.0,0.00019178,2]
[349201192,1737033039546,-500.0,0.00019178,2]
[349201193,1737033039556,-500.0,0.00019178,2]
[349201194,1737033039566,-151.0,0.00019178,2]
[349201195,1737033039575,-151.0,0.00019178,2]
[349201196,1737033039584,-500.0,0.00019178,2]
[349201197,1737033039595,-500.0,0.00019178,2]
[349201198,1737033039605,-500.0,0.00019178,2]
[349201199,1737033039614,-500.0,0.00019178,2]
[349201200,1737033039625,-500.0,0.00019178,7]
[349201201,1737033039634,-500.0,0.00019178,2]
[349201202,1737033039644,-500.0,0.00019178,2]
[349201203,1737033039653,-500.0,0.00019178,2]
[349201204,1737033039664,-525.58,0.00019178,2]
[349201205,1737033039674,-3894.3,0.00019178,2]
[349201206,1737033039684,-1090.54,0.00019178,2]
[349201207,1737033039694,-500.0,0.00019178,2]
[349201213,1737033039815,-500.0,0.00019178,2]
[349201214,1737033039825,-542.28048342,0.00019178,2]
[349201215,1737033039835,-838.65,0.00019178,2]
[349201216,1737033039845,-500.0,0.00019178,2]
[349201217,1737033039855,-500.0,0.00019178,2]
[349201218,1737033039864,-500.0,0.00019178,7]
[349201219,1737033039874,-500.0,0.00019178,2]
[349201220,1737033039884,-500.0,0.00019178,2]
[349201221,1737033039893,-151.0,0.00019178,2]
[349201222,1737033039904,-1085.39,0.00019178,2]
[349201223,1737033039915,-151.0,0.00019178,2]
[349201224,1737033039926,-500.0,0.00019178,2]
[349201225,1737033039936,-500.0,0.00019178,2]
[349201226,1737033039946,-600.16,0.00019178,2]
[349201227,1737033039956,-2740.8,0.00019178,2]
[349201228,1737033039967,-151.0,0.00019178,2]
[349201229,1737033039976,-500.0,0.00019178,2]
[349201230,1737033039987,-905.83,0.00019178,2]
[349201231,1737033039996,-152.894291,0.00019178,2]
[349201232,1737033040003,-1525.85,0.00019178,2]
[349201233,1737033040013,-522.06642848,0.00019178,2]
[349201234,1737033040023,-151.0,0.00019178,2]
[349201235,1737033040032,-500.0,0.00019178,2]
[349201236,1737033040042,-500.0,0.00019178,2]
[349201237,1737033040052,-500.0,0.00019178,2]
[349201238,1737033040061,-500.0,0.00019178,2]
[349201239,1737033040071,-500.0,0.00019178,2]
[349201240,1737033040081,-500.0,0.00019178,2]
[349201241,1737033040093,-500.0,0.00019178,2]
[349201242,1737033040102,-623.57,0.00019178,2]
[349201243,1737033040112,-163.262359,0.00019178,2]
[349201244,1737033040123,-169.59727,0.00019178,2]
[349201245,1737033040132,-174.794346,0.00019178,2]
[349201246,1737033040142,-5408.66585599,0.00019245,2]
[349201247,1737033040152,-500.0,0.00019315,3]
[349201248,1737033040161,-500.0,0.00019315,3]
[349201250,1737033040171,-426.1562905,0.00019315,3]
[349201251,1737033040181,-151.0,0.00019315,2]
[349201254,1737033040190,-500.0,0.00019315,3]
[349201256,1737033040200,-179.49069095,0.00019315,3]
[349201257,1737033040209,-466.58686051,0.00019315,3]
[349201258,1737033040219,-388.77233549,0.00019315,3]
[349201259,1737033040229,-500.0,0.00019315,3]
[349201261,1737033040239,-426.4439211,0.00019315,3]
[349201262,1737033040249,-500.0,0.00019315,3]
[349201263,1737033040259,-503.22445304,0.00019315,3]
[349201264,1737033040269,-501.91413728,0.00019315,3]
[349201265,1737033040278,-503.13185661,0.00019315,3]
[349201266,1737033040288,-500.0,0.00019315,3]
[349201268,1737033040298,-603.39659877,0.00019315,3]
[349201270,1737033040309,-500.0,0.00019315,3]
[349201271,1737033040318,-151.0,0.00019315,2]
[349201272,1737033040327,-151.0,0.00019315,2]
[349201273,1737033040338,-500.0,0.00019315,3]
[349201274,1737033040348,-195.334235,0.00019315,2]
[349201275,1737033040357,-195.334235,0.00019315,2]
[349201276,1737033040367,-500.0,0.00019315,3]
[349201277,1737033040376,-500.0,0.00019315,3]
[349201278,1737033040386,-154.921162,0.00019315,2]
[349201279,1737033040396,-547.14,0.00019315,3]
[349201280,1737033040406,-500.0,0.00019315,3]
[349201281,1737033040415,-500.0,0.00019315,3]
[349201282,1737033040425,-500.0,0.00019315,3]
[349201283,1737033040434,-500.0,0.00019315,3]
[349201284,1737033040444,-500.0,0.00019315,3]
[349201285,1737033040454,-832.53,0.00019315,3]
[349201286,1737033040463,-500.0,0.00019315,3]
[349201287,1737033040473,-151.0,0.00019315,2]
[349201288,1737033040482,-500.0,0.00019315,3]
[349201289,1737033040492,-500.0,0.00019315,3]
[349201290,1737033040502,-151.0,0.00019315,2]
[349201291,1737033040512,-500.0,0.00019315,3]
[349201292,1737033040521,-500.0,0.00019315,3]
[349201293,1737033040531,-207.52499694,0.00019315,3]